lending/lending_fUSD_20240621
["ID","MTS","AMOUNT","RATE_DAILY","PERIOD"]
[330021721,1718945434100,-710.1,0.00022465,4]
[330021722,1718945434111,-151.52,0.00022485,2]
[330021723,1718945434120,-337.55361231,0.0002249,2]
[330021724,1718945434131,-1255.1201,0.0002249,2]
[330021725,1718945434140,-166.66666668,0.00022506,2]
[330021726,1718945434150,-864.76563361,0.00022509,2]
[330021727,1718945434162,-2387.73686107,0.0002251,2]
[330021728,1718945434172,-152.0892653,0.00022524,2]
[330021729,1718945434182,-557.18184772,0.0002253,2]
[330021730,1718945434191,-864.76563361,0.00022535,2]
[330021731,1718945434201,-403.86655163,0.00022539,2]
[330021732,1718945434211,-152.31491691,0.00022543,2]
[330021733,1718945434221,-864.76563361,0.00022554,2]
[330021734,1718945434231,-156.44516308,0.00022554,2]
[330021735,1718945434241,-337.55361231,0.00022572,2]
[330021736,1718945434251,-152.0892653,0.00022583,2]
[330021737,1718945434260,-2387.73686107,0.00022585,2]
[330021738,1718945434270,-152.0892653,0.00022589,2]
[330021739,1718945434280,-152.34007048,0.00022591,2]
[330021740,1718945434289,-154.27131394,0.00022598,2]
[330021741,1718945434298,-1523.00591537,0.000226,7]
[330021742,1718945434307,-150.0,0.00022607,2]
[330021743,1718945434316,-171.3394229,0.00022625,2]
[330021744,1718945434325,-170.80481228,0.00022631,2]
[330021745,1718945434334,-433.07229383,0.00022631,2]
[330021746,1718945434343,-864.76563361,0.00022649,2]
[330021747,1718945434352,-2387.73686107,0.00022674,2]
[330021748,1718945434363,-864.76563361,0.00022687,2]
[330021749,1718945434372,-161.50993134,0.00022699,2]
[330021750,1718945434381,-2387.73686107,0.000227,2]
[330021751,1718945434390,-152.0892653,0.00022716,2]
[330021752,1718945434400,-156.30619669,0.00022726,2]
[330021753,1718945434409,-152.0892653,0.00022729,2]
[330021754,1718945434418,-155.59936831,0.00022731,2]
[330021755,1718945434427,-168.01954187,0.00022734,2]
[330021756,1718945434436,-710.1,0.00022739,5]
[330021757,1718945434445,-1444.15775,0.0002276,2]
[330021758,1718945434454,-864.76563361,0.00022763,2]
[330021759,1718945434463,-156.44516308,0.0002277,2]
[330021760,1718945434472,-152.260606,0.00022771,2]
[330021761,1718945434481,-337.55361231,0.00022781,2]
[330021762,1718945434490,-152.0892653,0.00022783,2]
[330021763,1718945434499,-369.6199,0.0002279,2]
[330021764,1718945434508,-156.44516308,0.00022795,2]
[330021765,1718945434517,-152.0892653,0.00022803,2]
[330021766,1718945434526,-150.59824253,0.00022804,2]
[330021767,1718945434535,-200.0,0.00022806,2]
[330021768,1718945434545,-1000.0,0.00022806,2]
[330021769,1718945434554,-500.0,0.00022806,2]
[330021770,1718945434766,-2387.73686107,0.00022814,2]
[330021771,1718945434777,-152.260606,0.00022824,2]
[330021772,1718945434787,-153.3707536,0.00022836,2]
[330021773,1718945434798,-689.92053766,0.00022842,2]
[330021774,1718945434810,-864.76563361,0.00022843,2]
[330021775,1718945434820,-209.88552387,0.00022876,2]
[330021776,1718945434830,-219.9,0.00022877,2]
[330021777,1718945434840,-167.35603031,0.0002288,2]
[330021778,1718945434849,-215.0,0.0002289,2]
[330021779,1718945434860,-176.77024666,0.0002289,2]
[330021780,1718945434869,-11971.19409585,0.0002289,2]
[330021781,1718945434878,-847.39241019,0.0002289,2]
[330021782,1718945434887,-2610.88257623,0.0002289,2]
[330021783,1718945434897,-670.48760314,0.0002289,2]
[330021784,1718945434906,-535.27975182,0.0002289,2]
[330021785,1718945434916,-1000.0,0.0002289,2]
[330021786,1718945434925,-10000.0,0.0002289,2]
[330021787,1718945434936,-441.7366,0.0002289,2]
[330021788,1718945434946,-150.0,0.000229,11]
[330021789,1718945434955,-1865.06391761,0.000229,14]
[330021790,1718945434964,-160.0,0.000229,2]
[330021791,1718945434974,-160.0,0.000229,2]
[330021792,1718945434984,-2387.73686107,0.00022907,2]
[330021793,1718945434994,-386.40752803,0.00022907,2]
[330021794,1718945435003,-152.0892653,0.00022908,2]
[330021795,1718945435012,-180.0,0.0002291,2]
[330021796,1718945435022,-247.00917619,0.00022911,2]
[330021797,1718945435032,-2387.73686107,0.00022912,2]
[330021798,1718945435040,-1492.76253249,0.00022919,2]
[330021799,1718945435050,-1339.7548544,0.0002292,2]
[330021800,1718945435061,-168.01954187,0.00022923,2]
[330021801,1718945435071,-155.15815196,0.00022924,2]
[330021802,1718945435087,-154.27131394,0.00022925,2]
[330021803,1718945435097,-152.0,0.00022925,6]
[330021804,1718945435108,-864.76563361,0.0002293,2]
[330021805,1718945435118,-337.55361231,0.00022939,2]
[330021806,1718945435129,-151.37009716,0.00022973,2]
[330021807,1718945435139,-2374.79710101,0.00022976,2]
[330021808,1718945435148,-2384.97376412,0.00022976,7]
[330021809,1718945435158,-337.55361231,0.00022977,2]
[330021810,1718945435168,-155.09580587,0.00022979,2]
[330021811,1718945435178,-216.40400055,0.0002298,2]
[330021812,1718945435188,-154.22455622,0.00022984,2]
[330021813,1718945435198,-341.57,0.00022986,2]
[330021814,1718945435208,-500.0,0.00022989,2]
[330021815,1718945435217,-374.21424182,0.0002299,2]
[330021816,1718945435227,-179.57334833,0.0002299,2]
[330021817,1718945435238,-34291.27751321,0.0002299,2]
[330021818,1718945435247,-405751.74281689,0.0002299,3]
[330021819,1718945435274,-5962.26601514,0.0002299,3]
[330021820,1718945435292,-1395.82966313,0.0002299,3]
[330021821,1718945435304,-854.70609405,0.0002299,3]
[330021822,1718945435315,-7215.10767295,0.0002299,3]
[330021823,1718945435329,-468.09747962,0.0002299,3]
[330021824,1718945435349,-601.00953441,0.0002299,3]
[330021832,1718945438485,-1026.6570653,0.0002299,3]
[330021833,1718945438498,-727.3743122,0.0002299,3]
[330021834,1718945438511,-703.58493973,0.0002299,3]
[330021835,1718945438523,-1011.37129971,0.0002299,3]
[330021836,1718945438534,-6571.4,0.0002299,3]
[330021837,1718945438546,-5629.96734332,0.0002299,3]
[330021838,1718945438601,-11386.35665093,0.0002299,3]
[330021839,1718945438613,-13563.02965636,0.0002299,3]
[330021840,1718945438625,-1378.50137711,0.0002299,3]
[330021841,1718945438637,-286.3073085,0.0002299,3]
[330021842,1718945438656,-58000.7781503,0.0002299,3]
[330021843,1718945438668,-522.21273873,0.0002299,3]
[330021844,1718945438679,-366079.70100573,0.0002299,3]
[330021845,1718945438689,-578.22951743,0.0002299,5]
[330021846,1718945438699,-66172.80982234,0.0002299,5]
[330021847,1718945438713,-8211.25435294,0.0002299,5]
[330021848,1718945438724,-6261.3347441,0.0002299,5]
[330021849,1718945438736,-83239.27032354,0.0002299,5]
[330021850,1718945438748,-295.82028696,0.0002299,5]
[330021852,1718945438772,-5583.24132789,0.0002299,5]
[330021853,1718945438784,-2658.89648734,0.0002299,5]
[330021854,1718945438812,-619.34200003,0.0002299,5]
[330021855,1718945438824,-841.30346,0.0002299,5]
[330022012,1718945440472,-12856.86656454,0.0002299,5]
[330022015,1718945440484,-3559.9522981,0.0002299,5]
[330022030,1718945440644,-3896.57759999,0.0002299,5]
[330022032,1718945440656,-258.11,0.0002299,5]
[330022035,1718945440668,-182492.65559831,0.0002299,5]
[330022037,1718945440680,-58740.67875044,0.0002299,5]
[330022039,1718945440691,-81905.69721516,0.0002299,5]
[330022041,1718945440703,-76446.20219026,0.0002299,5]
[330022043,1718945440714,-2531.547557,0.0002299,5]
[330022050,1718945440766,-1659.03255927,0.0002299,5]
[330022053,1718945440791,-708.505,0.0002299,5]
[330022407,1718945443915,-3296.19821388,0.0002299,5]
[330022408,1718945443927,-7160.00000002,0.0002299,5]
[330022412,1718945446509,-1144.6138646,0.00022919,2]
[330022413,1718945446521,-348.14866789,0.00022919,2]
[330022414,1718945446530,-231291.81367749,0.0002299,5]
[330022415,1718945446560,-559.27396224,0.0002299,5]
[330022416,1718945446622,-351.22370167,0.0002299,5]
[330022417,1718945446634,-3223.51638071,0.0002299,5]
[330022418,1718945446755,-390.67842279,0.0002299,5]
[330022419,1718945446775,-3519.8481979,0.0002299,5]
[330022625,1718946631759,-391.1666289,0.0001673,2]
[330022626,1718946631769,-391.1666289,0.00016773,2]
[330022627,1718946631778,-150.36,0.0001681,2]
[330022628,1718946631787,-391.1666289,0.00016815,2]
[330022629,1718946631796,-152.69,0.0001683,2]
[330022630,1718946631805,-163.8,0.00016914,2]
[330022631,1718946631814,-300.0,0.00016935,2]
[330022632,1718946631823,-688.55724502,0.00016935,2]
[330022683,1718946632699,-278.60878409,0.00016935,2]
[330022685,1718946632711,-22.86343558,0.00016935,2]
[330022687,1718946632720,-1092.93889612,0.00017035,2]
[330022689,1718946632732,-1143.25979979,0.00017035,2]
[330022691,1718946632741,-300.0,0.00017259,2]
[330022693,1718946632751,-590.13,0.00018778,2]
[330022696,1718946632760,-420.0,0.00018846,2]
[330022698,1718946632770,-945.443789,0.00020372,2]
[330022699,1718946632779,-100.19018047,0.00020578,2]
[330022705,1718946632817,-289.3455407,0.00020578,2]
[330022707,1718946632829,-197.46427883,0.00020578,2]
[330022708,1718946632842,-164.29005993,0.00020776,2]
[330022709,1718946632854,-817.26918962,0.00020776,2]
[330022710,1718946632865,-2333.50701761,0.00020776,2]
[330022711,1718946632876,-2207.40403079,0.00020776,2]
[330022712,1718946632888,-1325.14524,0.00020776,2]
[330022713,1718946632900,-603.38328281,0.00020776,2]
[330022714,1718946632940,-378.73,0.00020776,2]
[330022715,1718946632951,-6678.06297211,0.00020776,2]
[330022716,1718946632962,-5314.0001,0.00020776,2]
[330022717,1718946632973,-4078.20810713,0.00020776,2]
[330022718,1718946632982,-1157.45,0.00020784,2]
[330022719,1718946632992,-200.0,0.00020792,2]
[330022720,1718946633002,-18520.81,0.00020798,2]
[330022721,1718946633011,-1192.2,0.00020836,2]
[330022722,1718946633020,-381.10339731,0.0002084,2]
[330022723,1718946633030,-2049.48,0.00020841,2]
[330022724,1718946633039,-256.72,0.00020844,2]
[330022725,1718946633048,-788.54,0.00020845,30]
[330022726,1718946633058,-250.0,0.00020873,2]
[330022727,1718946633067,-1936.83,0.00020931,2]
[330022728,1718946633077,-1000.0,0.00020988,2]
[330022729,1718946633087,-202.369141,0.00021,2]
[330022730,1718946633096,-1250.0,0.00021,2]
[330022731,1718946633106,-321.88,0.0002104,2]
[330022732,1718946633115,-990.02946469,0.0002104,3]
[330022733,1718946633124,-590.13,0.00021042,2]
[330022734,1718946633133,-250.0,0.00021134,2]
[330022735,1718946633142,-179.04,0.00021269,2]
[330022736,1718946633151,-2098.21,0.00021283,2]
[330022737,1718946633161,-167.0,0.00021501,2]
[330022738,1718946633170,-566.09,0.00021644,2]
[330022739,1718946633179,-755.72,0.00021644,2]
[330022740,1718946633188,-1000.0,0.00021895,2]
[330022741,1718946633197,-1000.0,0.000219,2]
[330022742,1718946633206,-591.75,0.00021917,2]
[330022743,1718946633216,-384.6,0.00021918,2]
[330022744,1718946633225,-858.2,0.00021918,2]
[330022745,1718946633235,-150.0,0.00021987,2]
[330022746,1718946633244,-170.80481228,0.00022,2]
[330022747,1718946633253,-156.44516308,0.00022001,2]
[330022748,1718946633262,-490.03385904,0.00022026,2]
[330022749,1718946633271,-418.27,0.00022027,2]
[330022750,1718946633280,-852.58,0.00022027,2]
[330022751,1718946633290,-418.27,0.00022027,2]
[330022752,1718946633299,-852.58,0.00022027,2]
[330022753,1718946633308,-852.58,0.00022027,2]
[330022754,1718946633318,-418.27,0.00022027,2]
[330022755,1718946633327,-852.58,0.00022027,2]
[330022756,1718946633337,-418.27,0.00022027,2]
[330022757,1718946633346,-852.58,0.00022027,2]
[330022758,1718946633355,-418.27,0.00022027,2]
[330022759,1718946633364,-852.58,0.00022027,2]
[330022760,1718946633375,-418.27,0.00022027,2]
[330022761,1718946633384,-418.27,0.00022027,2]
[330022762,1718946633393,-852.58,0.00022027,2]
[330022763,1718946633402,-852.58,0.00022027,2]
[330022764,1718946633411,-418.27,0.00022027,2]
[330022765,1718946633422,-852.58,0.00022027,2]
[330022766,1718946633431,-418.27,0.00022027,2]
[330022767,1718946633441,-152.34007048,0.00022032,2]
[330022768,1718946633450,-490.03385904,0.00022037,2]
[330022769,1718946633459,-270.04288985,0.00022043,2]
[330022770,1718946633469,-191.91995749,0.00022051,2]
[330022771,1718946633478,-153.3707536,0.00022052,2]
[330022772,1718946633488,-378.47733061,0.00022055,2]
[330022773,1718946633502,-156.44516308,0.00022058,2]
[330022774,1718946633511,-152.260606,0.00022076,2]
[330022775,1718946633522,-156.44516308,0.00022081,2]
[330022776,1718946633533,-152.08926531,0.00022083,2]
[330022777,1718946633542,-156.44516308,0.00022102,2]
[330022778,1718946633551,-378.47733061,0.00022114,2]
[330022779,1718946633560,-270.04288985,0.0002212,2]
[330022780,1718946633573,-154.22455622,0.0002212,2]
[330022781,1718946633583,-155.36348853,0.0002213,2]
[330022782,1718946633594,-152.08926531,0.00022131,2]
[330022783,1718946633603,-166.66666668,0.00022143,2]
[330022784,1718946633614,-155.09496172,0.00022148,2]
[330022785,1718946633623,-378.47733061,0.00022161,2]
[330022786,1718946633633,-156.86,0.00022164,2]
[330022787,1718946633643,-543.52,0.00022164,2]
[330022788,1718946633654,-150.0,0.00022164,2]
[330022789,1718946633665,-423.54,0.00022164,2]
[330022790,1718946633675,-478.34,0.00022164,2]
[330022791,1718946633684,-179.33,0.00022164,2]
[330022792,1718946633693,-150.0,0.00022164,2]
[330022793,1718946633703,-173.34,0.00022164,2]
[330022794,1718946633712,-150.0,0.00022164,2]
[330022795,1718946633721,-233.37,0.00022164,2]
[330022796,1718946633732,-150.0,0.00022164,2]
[330022797,1718946633742,-527.5,0.00022164,2]
[330022798,1718946633752,-150.0,0.00022164,2]
[330022799,1718946633761,-164.55,0.00022164,2]
[330022800,1718946633770,-423.54,0.00022164,2]
[330022801,1718946633780,-150.0,0.00022164,2]
[330022802,1718946633790,-354.18,0.00022164,2]
[330022803,1718946633799,-150.0,0.00022164,2]
[330022804,1718946633809,-150.0,0.00022164,2]
[330022805,1718946633819,-527.5,0.00022164,2]
[330022806,1718946633828,-150.0,0.00022164,2]
[330022807,1718946633839,-150.0,0.00022164,2]
[330022808,1718946633849,-423.54,0.00022164,2]
[330022809,1718946633859,-150.0,0.00022164,2]
[330022810,1718946633870,-150.0,0.00022164,2]
[330022811,1718946633879,-150.0,0.00022164,2]
[330022812,1718946633888,-164.55,0.00022164,2]
[330022813,1718946633897,-150.0,0.00022164,2]
[330022814,1718946633907,-354.18,0.00022164,2]
[330022815,1718946633916,-150.0,0.00022164,2]
[330022816,1718946633927,-423.54,0.00022164,2]
[330022817,1718946633937,-164.55,0.00022164,2]
[330022818,1718946633947,-354.18,0.00022164,2]
[330022819,1718946633956,-150.0,0.00022164,2]
[330022820,1718946633965,-150.0,0.00022164,2]
[330022821,1718946633974,-150.0,0.00022164,2]
[330022822,1718946633983,-150.0,0.00022164,2]
[330022823,1718946633993,-527.5,0.00022164,2]
[330022824,1718946634002,-150.0,0.00022164,2]
[330022825,1718946634011,-150.0,0.00022164,2]
[330022826,1718946634021,-150.0,0.00022164,2]
[330022827,1718946634030,-150.0,0.00022164,2]
[330022828,1718946634040,-423.54,0.00022164,2]
[330022829,1718946634049,-354.18,0.00022164,2]
[330022830,1718946634058,-527.5,0.00022164,2]
[330022831,1718946634068,-164.55,0.00022164,2]
[330022832,1718946634077,-150.0,0.00022164,2]
[330022833,1718946634091,-150.0,0.00022164,2]
[330022834,1718946634101,-150.0,0.00022164,2]
[330022835,1718946634114,-354.18,0.00022164,2]
[330022836,1718946634124,-527.5,0.00022164,2]
[330022837,1718946634133,-164.55,0.00022164,2]
[330022838,1718946634143,-423.54,0.00022164,2]
[330022839,1718946634153,-150.0,0.00022164,2]
[330022840,1718946634163,-150.0,0.00022164,2]
[330022841,1718946634365,-150.0,0.00022164,2]
[330022842,1718946634380,-150.0,0.00022164,2]
[330022843,1718946634389,-150.0,0.00022164,2]
[330022844,1718946634398,-527.5,0.00022164,2]
[330022845,1718946634408,-150.0,0.00022164,2]
[330022846,1718946634417,-150.0,0.00022164,2]
[330022847,1718946634426,-354.18,0.00022164,2]
[330022848,1718946634437,-423.54,0.00022164,2]
[330022849,1718946634447,-150.0,0.00022164,2]
[330022850,1718946634456,-164.55,0.00022164,2]
[330022851,1718946634465,-150.0,0.00022164,2]
[330022852,1718946634474,-423.54,0.00022164,2]
[330022853,1718946634483,-150.0,0.00022164,2]
[330022854,1718946634497,-527.5,0.00022164,2]
[330022855,1718946634506,-164.55,0.00022164,2]
[330022856,1718946634515,-150.0,0.00022164,2]
[330022857,1718946634524,-354.18,0.00022164,2]
[330022858,1718946634535,-150.0,0.00022164,2]
[330022859,1718946634546,-150.0,0.00022164,2]
[330022860,1718946634557,-150.0,0.00022164,2]
[330022861,1718946634566,-150.0,0.00022164,2]
[330022862,1718946634576,-527.5,0.00022164,2]
[330022863,1718946634588,-150.0,0.00022164,2]
[330022864,1718946634597,-150.0,0.00022164,2]
[330022865,1718946634606,-150.0,0.00022164,2]
[330022866,1718946634615,-423.54,0.00022164,2]
[330022867,1718946634623,-354.18,0.00022164,2]
[330022868,1718946634636,-164.55,0.00022164,2]
[330022869,1718946634646,-1512.23334535,0.00022173,2]
[330022870,1718946634658,-300.0,0.00022178,2]
[330022871,1718946634667,-591.75,0.00022191,3]
[330022872,1718946634676,-490.03385904,0.00022193,2]
[330022873,1718946634685,-152.31491691,0.00022193,2]
[330022874,1718946634694,-152.08926531,0.00022196,2]
[330022875,1718946634703,-191.91995749,0.00022209,2]
[330022876,1718946634713,-270.04288985,0.00022239,2]
[330022877,1718946634722,-11587.7103,0.00022241,2]
[330022878,1718946634731,-151.37009716,0.00022247,2]
[330022879,1718946634740,-1512.23334535,0.00022247,2]
[330022880,1718946634749,-191.91995749,0.00022251,2]
[330022881,1718946634759,-152.260606,0.00022254,2]
[330022882,1718946634769,-166.66666668,0.00022255,2]
[330022883,1718946634779,-194.82495528,0.0002226,2]
[330022884,1718946634789,-154.68938117,0.00022263,2]
[330022885,1718946634798,-155.09496172,0.00022285,2]
[330022886,1718946634807,-378.47733061,0.00022286,2]
[330022887,1718946634816,-194.82495528,0.00022287,2]
[330022888,1718946634825,-191.91995749,0.00022309,2]
[330022889,1718946634835,-156.44516308,0.0002231,2]
[330022890,1718946634846,-152.31491691,0.00022332,2]
[330022891,1718946634855,-167.35603031,0.00022334,2]
[330022892,1718946634864,-1512.23334535,0.00022338,2]
[330022893,1718946634873,-152.34007048,0.00022346,2]
[330022894,1718946634882,-270.04288985,0.00022361,2]
[330022895,1718946634891,-194.82495528,0.00022367,2]
[330022896,1718946634900,-153.3707536,0.0002237,2]
[330022897,1718946634910,-151.37009716,0.00022371,2]
[330022898,1718946634920,-270.04288985,0.00022381,2]
[330022899,1718946634929,-155.09496172,0.000224,2]
[330022900,1718946634940,-152.31491691,0.00022405,2]
[330022901,1718946634949,-191.91995749,0.00022418,2]
[330022902,1718946634959,-270.04288985,0.00022422,2]
[330022903,1718946634968,-151.37009716,0.00022432,2]
[330022904,1718946634978,-152.34007048,0.00022449,2]
[330022905,1718946634987,-152.31491691,0.00022457,2]
[330022906,1718946634998,-591.75,0.00022465,4]
[330022907,1718946635007,-378.47733061,0.00022465,2]
[330022908,1718946635016,-154.22455622,0.00022466,2]
[330022909,1718946635026,-155.09496172,0.00022474,2]
[330022910,1718946635035,-490.03385904,0.00022487,2]
[330022911,1718946635045,-270.04288985,0.0002249,2]
[330022912,1718946635054,-378.47733061,0.00022492,2]
[330022913,1718946635063,-152.34007048,0.00022512,2]
[330022914,1718946635073,-378.47733061,0.00022512,2]
[330022915,1718946635082,-378.47733061,0.00022513,2]
[330022916,1718946635094,-507.06889845,0.0002253,2]
[330022917,1718946635103,-450.01240632,0.00022537,2]
[330022918,1718946635112,-191.91995749,0.00022541,2]
[330022919,1718946635120,-194.82495528,0.00022549,2]
[330022920,1718946635129,-270.04288985,0.00022563,2]
[330022921,1718946635138,-155.09496172,0.00022568,2]
[330022922,1718946635147,-191.91995749,0.00022578,2]
[330022923,1718946635156,-383.42204089,0.00022578,2]
[330022924,1718946635166,-490.03385904,0.0002261,2]
[330022925,1718946635175,-378.47733061,0.00022611,2]
[330022926,1718946635184,-154.30673625,0.00022612,2]
[330022927,1718946635194,-194.82495528,0.00022615,2]
[330022928,1718946635203,-152.34007048,0.00022617,2]
[330022929,1718946635212,-155.09496172,0.00022619,2]
[330022930,1718946635221,-154.27131395,0.00022621,2]
[330022931,1718946635231,-155.09496172,0.00022622,2]
[330022932,1718946635241,-191.91995749,0.00022622,2]
[330022933,1718946635251,-155.09496172,0.00022623,2]
[330022934,1718946635260,-194.82495528,0.00022629,2]
[330022935,1718946635269,-490.03385904,0.00022633,2]
[330022936,1718946635278,-191.91995749,0.00022658,2]
[330022937,1718946635287,-194.82495528,0.00022688,2]
[330022938,1718946635296,-151.37009716,0.00022694,2]
[330022939,1718946635305,-641.35102254,0.000227,7]
[330022940,1718946635314,-167.0,0.00022701,2]
[330022941,1718946635323,-1512.23334535,0.00022711,2]
[330022942,1718946635332,-155.09496172,0.00022719,2]
[330022943,1718946635343,-591.75,0.00022739,5]
[330022944,1718946635353,-490.03385904,0.00022765,2]
[330022945,1718946635362,-156.44516308,0.00022769,2]
[330022946,1718946635371,-490.03385904,0.00022793,2]
[330022947,1718946635380,-152.34007048,0.00022796,2]
[330022948,1718946635389,-532.20670904,0.00022804,2]
[330022949,1718946635398,-1512.23334535,0.00022805,2]
[330022950,1718946635408,-200.0,0.00022806,2]
[330022951,1718946635418,-500.0,0.00022806,2]
[330022952,1718946635428,-156.44516308,0.00022815,2]
[330022953,1718946635438,-171.3394229,0.00022818,2]
[330022954,1718946635447,-466.80589756,0.00022818,2]
[330022955,1718946635456,-152.31491691,0.00022819,2]
[330022956,1718946635465,-1512.23334535,0.00022819,2]
[330022957,1718946635474,-180.0,0.00022846,2]
[330022958,1718946635483,-167.56316939,0.00022857,2]
[330022959,1718946635495,-167.56316939,0.00022857,2]
[330022960,1718946635510,-154.23724616,0.00022858,2]
[330022961,1718946635519,-155.09496172,0.0002287,2]
[330022962,1718946635528,-152.08926531,0.00022875,2]
[330022963,1718946635537,-378.47733061,0.00022881,2]
[330022964,1718946635547,-502.0349,0.00022886,2]
[330022965,1718946635556,-191.91995749,0.00022887,2]
[330022966,1718946635567,-267.63202707,0.00022889,2]
[330022967,1718946635578,-544.2029,0.00022889,2]
[330022968,1718946635588,-441.7366,0.00022889,2]
[330022969,1718946635597,-228.21858906,0.0002289,2]
[330022970,1718946635606,-176.77024666,0.0002289,2]
[330022971,1718946635615,-9292.27226583,0.0002289,2]
[330022972,1718946635630,-2197.96889573,0.0002289,2]
[330022973,1718946635639,-9402.4623,0.0002289,2]
[330022974,1718946635649,-699.2329,0.0002289,2]
[330022975,1718946635658,-2487.2411,0.0002289,2]
[330022976,1718946635667,-1512.23334535,0.00022899,2]
[330022977,1718946635676,-160.0,0.000229,2]
[330022978,1718946635685,-160.0,0.000229,2]
[330022979,1718946635694,-150.0,0.000229,11]
[330022980,1718946635703,-150.9132841,0.00022901,2]
[330022981,1718946635712,-166.66666667,0.00022907,2]
[330022982,1718946635722,-166.66666667,0.00022912,2]
[330022983,1718946635731,-155.09496172,0.00022914,2]
[330022984,1718946635740,-378.47733061,0.00022927,2]
[330022985,1718946635749,-490.03385904,0.00022954,2]
[330022986,1718946635758,-490.03385904,0.00022959,2]
[330022987,1718946635767,-1512.23334535,0.00022975,2]
[330022988,1718946635777,-191.91995749,0.00022977,2]
[330022989,1718946635786,-216.40400056,0.0002298,2]
[330022990,1718946635796,-150.0,0.00022986,2]
[330022991,1718946635806,-150.0,0.00022986,2]
[330022992,1718946635816,-150.0,0.00022986,2]
[330022993,1718946635826,-527.5,0.00022986,2]
[330022994,1718946635835,-150.0,0.00022986,2]
[330022995,1718946635847,-423.54,0.00022986,2]
[330022996,1718946635856,-527.5,0.00022986,2]
[330022997,1718946635866,-150.0,0.00022986,2]
[330022998,1718946635876,-392.15,0.00022986,2]
[330022999,1718946635886,-164.55,0.00022986,2]
[330023000,1718946635896,-527.5,0.00022986,2]
[330023001,1718946635905,-150.0,0.00022986,2]
[330023002,1718946635916,-423.54,0.00022986,2]
[330023003,1718946635926,-150.0,0.00022986,2]
[330023004,1718946635935,-150.0,0.00022986,2]
[330023005,1718946635945,-164.55,0.00022986,2]
[330023006,1718946635954,-354.18,0.00022986,2]
[330023007,1718946635964,-423.54,0.00022986,2]
[330023008,1718946635973,-527.5,0.00022986,2]
[330023009,1718946635983,-286.18,0.00022986,2]
[330023010,1718946635992,-150.0,0.00022986,2]
[330023011,1718946636002,-150.0,0.00022986,2]
[330023012,1718946636011,-164.55,0.00022986,2]
[330023013,1718946636021,-423.54,0.00022986,2]
[330023014,1718946636031,-852.58,0.00022986,2]
[330023015,1718946636040,-527.5,0.00022986,2]
[330023016,1718946636050,-354.18,0.00022986,2]
[330023017,1718946636059,-150.0,0.00022986,2]
[330023018,1718946636068,-164.55,0.00022986,2]
[330023019,1718946636077,-423.54,0.00022986,2]
[330023020,1718946636089,-527.5,0.00022986,2]
[330023021,1718946636098,-150.0,0.00022986,2]
[330023022,1718946636107,-354.18,0.00022986,2]
[330023023,1718946636116,-852.58,0.00022986,2]
[330023024,1718946636126,-150.0,0.00022986,2]
[330023025,1718946636135,-164.55,0.00022986,2]
[330023026,1718946636144,-423.54,0.00022986,2]
[330023027,1718946636153,-354.18,0.00022986,2]
[330023028,1718946636163,-852.58,0.00022986,2]
[330023029,1718946636173,-423.54,0.00022986,2]
[330023030,1718946636182,-150.0,0.00022986,2]
[330023031,1718946636192,-354.18,0.00022986,2]
[330023032,1718946636202,-164.55,0.00022986,2]
[330023033,1718946636212,-150.0,0.00022986,2]
[330023034,1718946636221,-217.09065474,0.00022986,2]
[330023035,1718946636249,-280.85203042,0.00022986,2]
[330023036,1718946636260,-354.63731484,0.00022986,2]
[330023037,1718946636269,-527.5,0.00022986,2]
[330023038,1718946636278,-423.54,0.00022986,2]
[330023039,1718946636287,-354.18,0.00022986,2]
[330023040,1718946636296,-150.0,0.00022986,2]